[Event "GrandPrix_30.05"]
[Site "Chess.com"]
[Date "2020.05.30"]
[Round "3"]
[White "Kezin_Roman"]
[Black "AliKa2810"]
[Result "1-0"]
[WhiteElo "2532"]
[BlackElo "2177"]
[TimeControl "600+2"]
[EndTime "9:24:57 PDT"]
[Termination "Kezin_Roman won on time"]

1. d4 {[%clk 0:10:01.9]} 1... Nf6 {[%clk 0:10:00]} 2. c4 {[%clk 0:09:51.1]} 2...
e6 {[%clk 0:10:00.1]} 3. g3 {[%clk 0:09:51.8]} 3... d5 {[%clk 0:10:00.2]} 4. Bg2
{[%clk 0:09:52.7]} 4... Bb4+ {[%clk 0:10:01]} 5. Bd2 {[%clk 0:09:53.2]} 5... Be7
{[%clk 0:10:02]} 6. Nf3 {[%clk 0:09:54.2]} 6... O-O {[%clk 0:10:03.1]} 7. O-O
{[%clk 0:09:55.7]} 7... Nbd7 {[%clk 0:10:04.3]} 8. Qc2 {[%clk 0:09:56.7]} 8...
c6 {[%clk 0:10:04.7]} 9. Rd1 {[%clk 0:09:57.9]} 9... b6 {[%clk 0:10:05.8]} 10.
Bf4 {[%clk 0:09:58.2]} 10... Bb7 {[%clk 0:09:58.2]} 11. Nc3 {[%clk 0:09:54.4]}
11... dxc4 {[%clk 0:09:37.5]} 12. Nd2 {[%clk 0:09:53.5]} 12... Nd5 {[%clk
0:09:37.6]} 13. Nxc4 {[%clk 0:09:54.2]} 13... Nxf4 {[%clk 0:09:38.1]} 14. gxf4
{[%clk 0:09:56.1]} 14... Qc7 {[%clk 0:09:39.4]} 15. e3 {[%clk 0:09:55.8]} 15...
Rad8 {[%clk 0:09:36.6]} 16. Rac1 {[%clk 0:09:55.4]} 16... c5 {[%clk 0:09:23.8]}
17. d5 {[%clk 0:09:23.2]} 17... exd5 {[%clk 0:09:24.5]} 18. Bxd5 {[%clk
0:07:26.8]} 18... Nf6 {[%clk 0:09:23.7]} 19. Bxb7 {[%clk 0:07:27.6]} 19... Qxb7
{[%clk 0:09:25.6]} 20. a4 {[%clk 0:07:28.9]} 20... g6 {[%clk 0:07:45.9]} 21. b3
{[%clk 0:06:52.6]} 21... a6 {[%clk 0:07:15.7]} 22. Qe2 {[%clk 0:06:46.9]} 22...
Rxd1+ {[%clk 0:06:30.3]} 23. Rxd1 {[%clk 0:06:45.2]} 23... Rd8 {[%clk
0:06:31.9]} 24. Rxd8+ {[%clk 0:04:50.2]} 24... Bxd8 {[%clk 0:06:33.8]} 25. e4
{[%clk 0:04:46.5]} 25... Qd7 {[%clk 0:06:00.3]} 26. e5 {[%clk 0:03:36.4]} 26...
Nh5 {[%clk 0:06:00.6]} 27. Qf3 {[%clk 0:03:36.9]} 27... Qd4 {[%clk 0:03:54.9]}
28. Ne4 {[%clk 0:00:18]} 28... b5 {[%clk 0:03:53.1]} 29. axb5 {[%clk 0:00:19.9]}
29... axb5 {[%clk 0:03:54.7]} 30. Ncd6 {[%clk 0:00:21.3]} 30... c4 {[%clk
0:03:54.4]} 31. bxc4 {[%clk 0:00:23.2]} 31... bxc4 {[%clk 0:03:54.1]} 32. f5
{[%clk 0:00:17.8]} 32... Qa1+ {[%clk 0:03:18.9]} 33. Kg2 {[%clk 0:00:17.8]}
33... Qxe5 {[%clk 0:03:20.5]} 34. Nxc4 {[%clk 0:00:05]} 34... Nf4+ {[%clk
0:02:48.5]} 35. Kg3 {[%clk 0:00:05.5]} 35... Nh5+ {[%clk 0:02:49.3]} 36. Kg2
{[%clk 0:00:06.8]} 36... Qg7 {[%clk 0:00:27.9]} 37. Ng3 {[%clk 0:00:05.4]} 37...
Nxg3 {[%clk 0:00:16]} 38. hxg3 {[%clk 0:00:07.3]} 38... gxf5 {[%clk 0:00:16.6]}
39. Qxf5 {[%clk 0:00:07.8]} 39... Bf6 {[%clk 0:00:17.8]} 40. Nd6 {[%clk
0:00:07.7]} 40... Be7 {[%clk 0:00:05.7]} 41. Ne4 {[%clk 0:00:06.2]} 41... h6
{[%clk 0:00:06.2]} 42. Qd5 {[%clk 0:00:06.1]} 42... Qg6 {[%clk 0:00:05.6]} 43.
Qa8+ {[%clk 0:00:06.2]} 43... Kg7 {[%clk 0:00:06.6]} 44. Qb7 {[%clk 0:00:07.3]}
44... Bf8 {[%clk 0:00:06.7]} 45. Qd5 {[%clk 0:00:08.4]} 45... Be7 {[%clk
0:00:05]} 46. Qe5+ {[%clk 0:00:08.7]} 46... Bf6 {[%clk 0:00:06.2]} 47. Qe8
{[%clk 0:00:09.5]} 47... Bd4 {[%clk 0:00:04.5]} 48. Qa8 {[%clk 0:00:08.3]} 48...
Be5 {[%clk 0:00:03.2]} 49. Qd5 {[%clk 0:00:09.2]} 49... Bf6 {[%clk 0:00:04.3]}
50. Qd3 {[%clk 0:00:09.7]} 50... Be5 {[%clk 0:00:04.9]} 51. Qf3 {[%clk
0:00:10.8]} 51... Bf6 {[%clk 0:00:05]} 52. Nd6 {[%clk 0:00:11.5]} 1-0

[Event "GrandPrix_30.05"]
[Site "Chess.com"]
[Date "2020.05.30"]
[Round "3"]
[White "iceboy88"]
[Black "LANCELOT96"]
[Result "1/2-1/2"]
[WhiteElo "2333"]
[BlackElo "2163"]
[TimeControl "600+2"]
[EndTime "9:24:58 PDT"]
[Termination "Game drawn by repetition"]

1. Nf3 {[%clk 0:10:01.9]} 1... d5 {[%clk 0:10:00.9]} 2. g3 {[%clk 0:10:01.3]}
2... Nf6 {[%clk 0:10:02.4]} 3. Bg2 {[%clk 0:10:02]} 3... Bg4 {[%clk 0:10:04.1]}
4. O-O {[%clk 0:10:01.8]} 4... e6 {[%clk 0:10:05.3]} 5. c4 {[%clk 0:10:01]} 5...
c6 {[%clk 0:10:06.7]} 6. cxd5 {[%clk 0:09:51.8]} 6... exd5 {[%clk 0:10:08.6]} 7.
d3 {[%clk 0:09:35.5]} 7... Nbd7 {[%clk 0:10:09.2]} 8. Nc3 {[%clk 0:09:32.6]}
8... Bc5 {[%clk 0:10:03.9]} 9. h3 {[%clk 0:09:31.3]} 9... Bh5 {[%clk 0:10:04.7]}
10. e4 {[%clk 0:09:19.4]} 10... O-O {[%clk 0:10:02.9]} 11. g4 {[%clk 0:09:15.5]}
11... Bg6 {[%clk 0:10:03.7]} 12. e5 {[%clk 0:09:14.5]} 12... Ne8 {[%clk
0:09:59.9]} 13. d4 {[%clk 0:09:14.7]} 13... Be7 {[%clk 0:09:59.7]} 14. Ne1
{[%clk 0:09:02.7]} 14... f5 {[%clk 0:09:55.1]} 15. f4 {[%clk 0:08:55.1]} 15...
Nc7 {[%clk 0:09:56]} 16. Nc2 {[%clk 0:08:14]} 16... Ne6 {[%clk 0:09:41.2]} 17.
Ne3 {[%clk 0:08:07.5]} 17... Qb6 {[%clk 0:07:52.7]} 18. Ne2 {[%clk 0:07:41.7]}
18... Rf7 {[%clk 0:07:54.2]} 19. gxf5 {[%clk 0:06:27.6]} 19... Bxf5 {[%clk
0:07:55]} 20. Nxf5 {[%clk 0:06:28.7]} 20... Rxf5 {[%clk 0:07:56.9]} 21. Be3
{[%clk 0:06:25.2]} 21... Raf8 {[%clk 0:07:48.7]} 22. Ng3 {[%clk 0:06:19.9]}
22... Rxf4 {[%clk 0:07:19.8]} 23. Bxf4 {[%clk 0:06:11.1]} 23... Nxf4 {[%clk
0:07:21.2]} 24. Rf2 {[%clk 0:04:20.1]} 24... Bh4 {[%clk 0:07:18.3]} 25. Qg4
{[%clk 0:04:08.5]} 25... Bxg3 {[%clk 0:07:07.2]} 26. Qxg3 {[%clk 0:04:09.4]}
26... Qxd4 {[%clk 0:07:04]} 27. Kh1 {[%clk 0:03:42.7]} 27... Nxe5 {[%clk
0:06:58.8]} 28. Raf1 {[%clk 0:03:19.5]} 28... Neg6 {[%clk 0:06:49.8]} 29. Qg4
{[%clk 0:00:55.6]} 29... Qe5 {[%clk 0:06:48.3]} 30. b4 {[%clk 0:00:37.9]} 30...
Nxg2 {[%clk 0:06:43.7]} 31. Rxf8+ {[%clk 0:00:29.3]} 31... Nxf8 {[%clk 0:06:45]}
32. Qxg2 {[%clk 0:00:29.1]} 32... Nd7 {[%clk 0:06:36.8]} 33. Qg4 {[%clk
0:00:25.5]} 33... Qe7 {[%clk 0:06:25.4]} 34. Qf5 {[%clk 0:00:20.2]} 34... Nf6
{[%clk 0:06:24.6]} 35. a3 {[%clk 0:00:21.4]} 35... Qe4+ {[%clk 0:05:54.2]} 36.
Qxe4 {[%clk 0:00:21.9]} 36... Nxe4 {[%clk 0:05:56.1]} 37. Kg2 {[%clk 0:00:22.4]}
37... Nf6 {[%clk 0:05:57.6]} 38. Kf3 {[%clk 0:00:20.9]} 38... Kf7 {[%clk
0:05:59.2]} 39. Kf4 {[%clk 0:00:19.1]} 39... Ke6 {[%clk 0:06:00]} 40. Re1+
{[%clk 0:00:20.4]} 40... Kd6 {[%clk 0:06:00.8]} 41. Kf5 {[%clk 0:00:21.4]} 41...
Ne4 {[%clk 0:06:00.5]} 42. Rg1 {[%clk 0:00:21.5]} 42... g6+ {[%clk 0:06:01.8]}
43. Kf4 {[%clk 0:00:22.8]} 43... b6 {[%clk 0:06:01.9]} 44. h4 {[%clk 0:00:23.8]}
44... c5 {[%clk 0:06:01.8]} 45. bxc5+ {[%clk 0:00:23.6]} 45... bxc5 {[%clk
0:06:03.7]} 46. Rb1 {[%clk 0:00:22.3]} 46... c4 {[%clk 0:06:02.2]} 47. Rb7
{[%clk 0:00:22.3]} 47... c3 {[%clk 0:06:03.3]} 48. Rb1 {[%clk 0:00:17.6]} 48...
Kc5 {[%clk 0:06:01.6]} 49. Ke3 {[%clk 0:00:18.7]} 49... h6 {[%clk 0:04:04.3]}
50. Kd3 {[%clk 0:00:18.9]} 50... g5 {[%clk 0:04:05.1]} 51. hxg5 {[%clk
0:00:17.9]} 51... hxg5 {[%clk 0:04:07]} 52. Rb7 {[%clk 0:00:18]} 52... a5 {[%clk
0:04:06.6]} 53. Rc7+ {[%clk 0:00:18]} 53... Kd6 {[%clk 0:04:06.1]} 54. Ra7
{[%clk 0:00:18]} 54... g4 {[%clk 0:04:07.6]} 55. Rxa5 {[%clk 0:00:18.9]} 55...
g3 {[%clk 0:04:09.2]} 56. Ra6+ {[%clk 0:00:20]} 56... Ke5 {[%clk 0:04:10.6]} 57.
Rg6 {[%clk 0:00:20.9]} 57... Kf4 {[%clk 0:04:12]} 58. a4 {[%clk 0:00:21.2]}
58... Nf2+ {[%clk 0:03:36]} 59. Kxc3 {[%clk 0:00:20.4]} 59... Ng4 {[%clk
0:03:37.5]} 60. Rb6 {[%clk 0:00:19]} 60... g2 {[%clk 0:03:22.9]} 61. Rb1 {[%clk
0:00:19.4]} 61... Ne3 {[%clk 0:01:16.7]} 62. Rg1 {[%clk 0:00:19]} 62... Ke4
{[%clk 0:01:18.1]} 63. a5 {[%clk 0:00:18.8]} 63... d4+ {[%clk 0:01:19.6]} 64.
Kd2 {[%clk 0:00:18.3]} 64... Nc4+ {[%clk 0:01:19.2]} 65. Ke2 {[%clk 0:00:17.4]}
65... Nxa5 {[%clk 0:01:18.9]} 66. Rxg2 {[%clk 0:00:18.5]} 66... Nc4 {[%clk
0:01:15.2]} 67. Rg4+ {[%clk 0:00:17.7]} 67... Kd5 {[%clk 0:01:16.1]} 68. Rh4
{[%clk 0:00:18]} 68... Ne5 {[%clk 0:01:16.4]} 69. Rh8 {[%clk 0:00:16.9]} 69...
Ke4 {[%clk 0:01:17.5]} 70. Rh4+ {[%clk 0:00:17.1]} 70... Kd5 {[%clk 0:01:18.8]}
71. Rh8 {[%clk 0:00:18.2]} 71... Ke4 {[%clk 0:01:20.2]} 72. Rh4+ {[%clk
0:00:19.1]} 72... Kd5 {[%clk 0:01:21.8]} 1/2-1/2

[Event "GrandPrix_30.05"]
[Site "Chess.com"]
[Date "2020.05.30"]
[Round "3"]
[White "Meizon19"]
[Black "MasterSonnevanck2"]
[Result "0-1"]
[WhiteElo "2281"]
[BlackElo "2158"]
[TimeControl "600+2"]
[EndTime "9:25:10 PDT"]
[Termination "MasterSonnevanck2 won on time"]

1. e4 {[%clk 0:10:01.9]} 1... e5 {[%clk 0:09:59.4]} 2. Nf3 {[%clk 0:10:01.8]}
2... Nc6 {[%clk 0:09:59.9]} 3. Nc3 {[%clk 0:10:02.4]} 3... Nf6 {[%clk
0:09:59.7]} 4. Be2 {[%clk 0:10:03.3]} 4... Be7 {[%clk 0:09:48.1]} 5. O-O {[%clk
0:10:02]} 5... O-O {[%clk 0:09:46.2]} 6. d3 {[%clk 0:09:45.9]} 6... d6 {[%clk
0:09:46.4]} 7. h3 {[%clk 0:09:46.4]} 7... h6 {[%clk 0:09:24.6]} 8. Be3 {[%clk
0:09:46.7]} 8... Be6 {[%clk 0:09:15.8]} 9. d4 {[%clk 0:09:38]} 9... exd4 {[%clk
0:09:13.2]} 10. Nxd4 {[%clk 0:09:38.8]} 10... Nxd4 {[%clk 0:09:05.4]} 11. Bxd4
{[%clk 0:09:38.3]} 11... Nd7 {[%clk 0:08:55.6]} 12. f4 {[%clk 0:09:20.2]} 12...
f5 {[%clk 0:08:24.5]} 13. exf5 {[%clk 0:08:21.4]} 13... Bxf5 {[%clk 0:08:21.8]}
14. Bc4+ {[%clk 0:08:16.8]} 14... Kh8 {[%clk 0:08:04.1]} 15. Nd5 {[%clk
0:07:58.2]} 15... Bh4 {[%clk 0:07:14.1]} 16. Qh5 {[%clk 0:07:25.1]} 16... Kh7
{[%clk 0:07:11.4]} 17. Ne3 {[%clk 0:05:47.1]} 17... Bg6 {[%clk 0:06:55.1]} 18.
Qg4 {[%clk 0:05:46.4]} 18... Bf6 {[%clk 0:06:30.8]} 19. f5 {[%clk 0:05:39.4]}
19... Be8 {[%clk 0:06:29.8]} 20. Rae1 {[%clk 0:05:18.5]} 20... c6 {[%clk
0:05:31]} 21. Bd3 {[%clk 0:04:36.8]} 21... d5 {[%clk 0:05:22.6]} 22. c4 {[%clk
0:04:17.5]} 22... c5 {[%clk 0:05:08.4]} 23. Bxf6 {[%clk 0:04:15.6]} 23... Nxf6
{[%clk 0:05:06.8]} 24. Qg3 {[%clk 0:04:14.2]} 24... dxc4 {[%clk 0:04:35.4]} 25.
Nxc4 {[%clk 0:04:08.8]} 25... Bc6 {[%clk 0:03:52.3]} 26. Ne5 {[%clk 0:03:57]}
26... Be8 {[%clk 0:03:26.9]} 27. Kh1 {[%clk 0:03:31.8]} 27... b5 {[%clk
0:02:50.3]} 28. Ng6 {[%clk 0:03:30.8]} 28... Bxg6 {[%clk 0:02:46.2]} 29. Qxg6+
{[%clk 0:03:28.4]} 29... Kh8 {[%clk 0:02:44]} 30. Bxb5 {[%clk 0:03:10.9]} 30...
Rb8 {[%clk 0:02:39.2]} 31. a4 {[%clk 0:03:11.5]} 31... Rb6 {[%clk 0:02:09]} 32.
Re6 {[%clk 0:02:58.4]} 32... a6 {[%clk 0:01:19.7]} 33. Bc4 {[%clk 0:02:43.5]}
33... Rxb2 {[%clk 0:01:17.8]} 34. Bxa6 {[%clk 0:02:34.2]} 34... Qd4 {[%clk
0:01:16.2]} 35. Re7 {[%clk 0:02:21.6]} 35... Rg8 {[%clk 0:01:00.5]} 36. Bc8
{[%clk 0:01:10.7]} 36... Ne4 {[%clk 0:00:53.5]} 37. f6 {[%clk 0:00:31.1]} 37...
Nxf6 {[%clk 0:00:48.9]} 38. Be6 {[%clk 0:00:21.7]} 38... Qd6 {[%clk 0:00:43]}
39. Bxg8 {[%clk 0:00:11.7]} 39... Qxe7 {[%clk 0:00:42.7]} 40. Bc4 {[%clk
0:00:12.2]} 40... Rb4 {[%clk 0:00:36.2]} 41. Bd3 {[%clk 0:00:12.6]} 41... Rd4
{[%clk 0:00:32.6]} 42. Bf5 {[%clk 0:00:06.3]} 42... c4 {[%clk 0:00:32.1]} 43. a5
{[%clk 0:00:07.9]} 43... c3 {[%clk 0:00:31.1]} 44. a6 {[%clk 0:00:08.8]} 44...
Ra4 {[%clk 0:00:29.5]} 45. Bd3 {[%clk 0:00:08.9]} 45... Ra2 {[%clk 0:00:20.5]}
46. Qg3 {[%clk 0:00:04.8]} 46... Rb2 {[%clk 0:00:10.5]} 47. Bf5 {[%clk
0:00:03.7]} 47... c2 {[%clk 0:00:08.5]} 48. Qc3 {[%clk 0:00:04.8]} 48... Rb8
{[%clk 0:00:05.7]} 49. Qxc2 {[%clk 0:00:05.3]} 49... Nh5 {[%clk 0:00:05.2]} 50.
Qf2 {[%clk 0:00:04.7]} 50... Qe5 {[%clk 0:00:04.5]} 51. Kg1 {[%clk 0:00:05.1]}
51... Ng3 {[%clk 0:00:03.4]} 52. a7 {[%clk 0:00:04.4]} 52... Ra8 {[%clk
0:00:02.7]} 0-1

[Event "GrandPrix_30.05"]
[Site "Chess.com"]
[Date "2020.05.30"]
[Round "3"]
[White "BMOchsner"]
[Black "TheEternalPatzer"]
[Result "1-0"]
[WhiteElo "2282"]
[BlackElo "2042"]
[TimeControl "600+2"]
[EndTime "9:25:14 PDT"]
[Termination "BMOchsner won by resignation"]

1. e4 {[%clk 0:10:01.9]} 1... d6 {[%clk 0:10:00.1]} 2. d4 {[%clk 0:10:02.3]}
2... Nf6 {[%clk 0:10:01.4]} 3. Nc3 {[%clk 0:10:03.1]} 3... g6 {[%clk 0:10:02]}
4. Be3 {[%clk 0:10:03.1]} 4... c6 {[%clk 0:10:02.3]} 5. f3 {[%clk 0:09:50]} 5...
Nbd7 {[%clk 0:09:57]} 6. h4 {[%clk 0:09:43.7]} 6... h5 {[%clk 0:09:53.8]} 7. Nh3
{[%clk 0:09:38.9]} 7... b5 {[%clk 0:09:37.2]} 8. Ng5 {[%clk 0:08:28.9]} 8... Qc7
{[%clk 0:09:35.3]} 9. Qd2 {[%clk 0:07:38.6]} 9... Bg7 {[%clk 0:09:33.7]} 10. a4
{[%clk 0:06:39.5]} 10... b4 {[%clk 0:09:30.5]} 11. Nd1 {[%clk 0:06:36.8]} 11...
a5 {[%clk 0:09:27.1]} 12. Bc4 {[%clk 0:06:22.6]} 12... d5 {[%clk 0:09:19.8]} 13.
Bb3 {[%clk 0:06:01.2]} 13... e5 {[%clk 0:08:17.5]} 14. dxe5 {[%clk 0:05:26]}
14... Nxe5 {[%clk 0:08:15.9]} 15. Bf4 {[%clk 0:04:48.2]} 15... O-O {[%clk
0:07:45.6]} 16. Nf2 {[%clk 0:04:33.8]} 16... dxe4 {[%clk 0:07:23.7]} 17. fxe4
{[%clk 0:04:25.4]} 17... Nfg4 {[%clk 0:06:36.7]} 18. O-O {[%clk 0:03:37.7]}
18... Qa7 {[%clk 0:06:11.5]} 19. Kh1 {[%clk 0:01:58.5]} 19... Ba6 {[%clk
0:04:45.3]} 20. Nd3 {[%clk 0:01:58.9]} 20... Rad8 {[%clk 0:04:23.6]} 21. Bxe5
{[%clk 0:01:10.4]} 21... Nxe5 {[%clk 0:04:19.1]} 22. Nxf7 {[%clk 0:00:15.8]}
22... Nxf7 {[%clk 0:03:56.8]} 23. Rxf7 {[%clk 0:00:13.1]} 23... Rxf7 {[%clk
0:03:46.7]} 24. Rf1 {[%clk 0:00:14.1]} 24... Rf8 {[%clk 0:03:18.4]} 25. Qf4
{[%clk 0:00:14.6]} 25... Bxd3 {[%clk 0:03:00.8]} 26. cxd3 {[%clk 0:00:15.3]}
26... Qe7 {[%clk 0:02:18]} 27. g3 {[%clk 0:00:09.3]} 27... Qe5 {[%clk 0:01:36]}
28. Bxf7+ {[%clk 0:00:08.4]} 28... Kh7 {[%clk 0:01:29.5]} 29. Kg2 {[%clk
0:00:05.7]} 29... Qxf4 {[%clk 0:01:15.3]} 30. Rxf4 {[%clk 0:00:06.4]} 30... Bxb2
{[%clk 0:01:03.5]} 31. Bxg6+ {[%clk 0:00:07]} 31... Kg7 {[%clk 0:01:04]} 32.
Rxf8 {[%clk 0:00:07.4]} 32... Kxf8 {[%clk 0:01:05.4]} 33. Bxh5 {[%clk
0:00:08.7]} 33... Be5 {[%clk 0:00:57.7]} 34. Bd1 {[%clk 0:00:09.2]} 34... Kg7
{[%clk 0:00:58.7]} 35. Kf3 {[%clk 0:00:07.8]} 35... Kf6 {[%clk 0:01:00.6]} 36.
Bb3 {[%clk 0:00:08.1]} 36... c5 {[%clk 0:01:00.6]} 37. Bc4 {[%clk 0:00:08.8]}
37... Kg6 {[%clk 0:01:01.3]} 38. g4 {[%clk 0:00:10]} 38... Kh6 {[%clk
0:01:02.3]} 39. Bf7 {[%clk 0:00:09.9]} 39... Kg7 {[%clk 0:01:02.3]} 40. Bb3
{[%clk 0:00:10.9]} 40... Kh6 {[%clk 0:01:03.2]} 41. Kg2 {[%clk 0:00:11.7]} 41...
Kg6 {[%clk 0:01:02.1]} 42. Kh3 {[%clk 0:00:12.9]} 42... Kh6 {[%clk 0:01:03.2]}
43. g5+ {[%clk 0:00:14.2]} 43... Kg6 {[%clk 0:01:03.9]} 44. Kg4 {[%clk
0:00:15.6]} 44... Bd4 {[%clk 0:01:03.9]} 45. h5+ {[%clk 0:00:16.9]} 45... Kg7
{[%clk 0:01:04.6]} 46. Kf5 {[%clk 0:00:18.6]} 46... Be3 {[%clk 0:01:04.6]} 47.
h6+ {[%clk 0:00:19.8]} 47... Kh7 {[%clk 0:01:05]} 48. Bc4 {[%clk 0:00:19.8]}
48... Bd2 {[%clk 0:01:02.4]} 49. Bf7 {[%clk 0:00:20.8]} 49... Bc3 {[%clk
0:00:59.8]} 50. Kg4 {[%clk 0:00:21.5]} 50... c4 {[%clk 0:00:20.5]} 51. Bxc4
{[%clk 0:00:21.4]} 51... Bd2 {[%clk 0:00:09.6]} 52. Kh5 {[%clk 0:00:20.8]} 52...
Kh8 {[%clk 0:00:10]} 53. Bb3 {[%clk 0:00:20]} 53... Bc1 {[%clk 0:00:06.8]} 54.
e5 {[%clk 0:00:20.6]} 54... Bf4 {[%clk 0:00:06.5]} 55. e6 {[%clk 0:00:21.8]}
55... Bd6 {[%clk 0:00:08.4]} 56. g6 {[%clk 0:00:21]} 56... Be7 {[%clk 0:00:08]}
57. g7+ {[%clk 0:00:21.9]} 57... Kh7 {[%clk 0:00:08.9]} 58. Kg4 {[%clk
0:00:22.7]} 58... Bf6 {[%clk 0:00:08.5]} 59. Kf5 {[%clk 0:00:22.6]} 1-0

[Event "GrandPrix_30.05"]
[Site "Chess.com"]
[Date "2020.05.30"]
[Round "3"]
[White "Haapana"]
[Black "Winawer81"]
[Result "1-0"]
[WhiteElo "2373"]
[BlackElo "2146"]
[TimeControl "600+2"]
[EndTime "9:25:17 PDT"]
[Termination "Haapana won by resignation"]

1. d4 {[%clk 0:10:01.9]} 1... Nf6 {[%clk 0:10:00.2]} 2. c4 {[%clk 0:10:01.9]}
2... e6 {[%clk 0:09:59.7]} 3. Nf3 {[%clk 0:10:00.6]} 3... b6 {[%clk 0:09:59.9]}
4. g3 {[%clk 0:10:00.5]} 4... Bb7 {[%clk 0:09:54.9]} 5. Bg2 {[%clk 0:09:59.7]}
5... Be7 {[%clk 0:09:54.9]} 6. Nc3 {[%clk 0:09:33.5]} 6... O-O {[%clk
0:09:50.8]} 7. O-O {[%clk 0:09:16.6]} 7... Na6 {[%clk 0:09:49.1]} 8. Bf4 {[%clk
0:08:34.1]} 8... d5 {[%clk 0:08:40.7]} 9. Ne5 {[%clk 0:08:12.8]} 9... c6 {[%clk
0:08:28.6]} 10. e4 {[%clk 0:07:59.6]} 10... Nc7 {[%clk 0:07:40.5]} 11. Qa4
{[%clk 0:07:37.1]} 11... Qe8 {[%clk 0:07:25.6]} 12. Rac1 {[%clk 0:05:23.2]}
12... b5 {[%clk 0:06:23.5]} 13. cxb5 {[%clk 0:04:21.6]} 13... Nxb5 {[%clk
0:05:36.8]} 14. exd5 {[%clk 0:02:47]} 14... Nxc3 {[%clk 0:05:29.8]} 15. Rxc3
{[%clk 0:02:45.4]} 15... cxd5 {[%clk 0:04:45.7]} 16. Nc6 {[%clk 0:02:28]} 16...
Bxc6 {[%clk 0:03:28.8]} 17. Qxc6 {[%clk 0:01:41.3]} 17... Ne4 {[%clk 0:03:06.3]}
18. Bxe4 {[%clk 0:01:21.5]} 18... dxe4 {[%clk 0:03:06.4]} 19. Qxe4 {[%clk
0:00:58.4]} 19... Qa4 {[%clk 0:03:03.6]} 20. a3 {[%clk 0:00:55.1]} 20... Rad8
{[%clk 0:02:51.5]} 21. Be5 {[%clk 0:00:50.3]} 21... Rd5 {[%clk 0:02:27.4]} 22.
Rfc1 {[%clk 0:00:36.9]} 22... Bd6 {[%clk 0:01:32]} 23. Bxd6 {[%clk 0:00:20.2]}
23... Rxd6 {[%clk 0:01:32.3]} 24. Rc4 {[%clk 0:00:19.6]} 24... Qb3 {[%clk
0:01:29.1]} 25. Qc2 {[%clk 0:00:19.1]} 25... Qb6 {[%clk 0:01:26.9]} 26. Qc3
{[%clk 0:00:16.5]} 26... Rfd8 {[%clk 0:01:25.1]} 27. Rd1 {[%clk 0:00:16.9]}
27... a5 {[%clk 0:01:10.9]} 28. b4 {[%clk 0:00:15.6]} 28... axb4 {[%clk
0:01:06.2]} 29. axb4 {[%clk 0:00:16.7]} 29... h5 {[%clk 0:01:03]} 30. Rc5 {[%clk
0:00:16.7]} 30... h4 {[%clk 0:01:00.6]} 31. b5 {[%clk 0:00:07.9]} 31... h3
{[%clk 0:00:56]} 32. Kf1 {[%clk 0:00:05.8]} 32... Qb7 {[%clk 0:00:54.9]} 33. f3
{[%clk 0:00:06.5]} 33... Qd7 {[%clk 0:00:51.4]} 34. Kf2 {[%clk 0:00:06.8]} 34...
Qe7 {[%clk 0:00:27.8]} 35. Qc4 {[%clk 0:00:07.5]} 35... Qf6 {[%clk 0:00:27.5]}
36. Rc8 {[%clk 0:00:04.7]} 36... Rxc8 {[%clk 0:00:21.1]} 37. Qxc8+ {[%clk
0:00:04.9]} 37... Kh7 {[%clk 0:00:23]} 38. Qc4 {[%clk 0:00:05.7]} 38... Qf5
{[%clk 0:00:21.6]} 39. Qd3 {[%clk 0:00:06.3]} 39... Kg6 {[%clk 0:00:17.5]} 40.
Qxf5+ {[%clk 0:00:06.5]} 40... Kxf5 {[%clk 0:00:18.5]} 41. Rb1 {[%clk
0:00:08.2]} 41... Rb6 {[%clk 0:00:19]} 42. Ke3 {[%clk 0:00:07.9]} 42... f6
{[%clk 0:00:17.9]} 43. g4+ {[%clk 0:00:09.5]} 43... Kg6 {[%clk 0:00:18.2]} 44.
Kf4 {[%clk 0:00:10.5]} 44... Kf7 {[%clk 0:00:19.3]} 45. Kg3 {[%clk 0:00:11.4]}
45... Ke7 {[%clk 0:00:20.3]} 46. Kxh3 {[%clk 0:00:12.6]} 46... Kd6 {[%clk
0:00:21.2]} 47. Kg3 {[%clk 0:00:13.9]} 47... Kd5 {[%clk 0:00:22.1]} 48. Rb4
{[%clk 0:00:15]} 48... g5 {[%clk 0:00:21.2]} 49. f4 {[%clk 0:00:13.5]} 49...
gxf4+ {[%clk 0:00:18.1]} 50. Kxf4 {[%clk 0:00:15.4]} 50... e5+ {[%clk
0:00:18.9]} 51. dxe5 {[%clk 0:00:14.8]} 51... fxe5+ {[%clk 0:00:19.5]} 52. Ke3
{[%clk 0:00:16.1]} 52... Kc5 {[%clk 0:00:20]} 53. Re4 {[%clk 0:00:15.3]} 53...
Kd5 {[%clk 0:00:19.5]} 54. Rb4 {[%clk 0:00:16.4]} 54... Kc5 {[%clk 0:00:20.1]}
55. Rb1 {[%clk 0:00:17.9]} 55... Kd5 {[%clk 0:00:16]} 56. h4 {[%clk 0:00:17.7]}
56... Ke6 {[%clk 0:00:13.4]} 57. Ke4 {[%clk 0:00:18.4]} 57... Kf6 {[%clk
0:00:13.1]} 58. Kd5 {[%clk 0:00:18.2]} 58... e4 {[%clk 0:00:10.7]} 59. Kxe4
{[%clk 0:00:18.4]} 1-0